[Event "Titled Tuesday Blitz March 14 Late 2023"]
[White "Aldokhin, Ivan"]
[Black "Harish, Neeraj"]
[WhiteFideId "24115720"]
[BlackFideId "30958130"]
[WhiteElo "2322"]
[BlackElo "1963"]
[Result "1-0"]
[Round "07"]
[TimeControl "180+2"]
[Date "2023.03.14"]
[WhiteClock "0:01:12"]
[BlackClock "0:00:49"]

1. e4 {[%clk 0:03:00]}  c5 {[%clk 0:02:58]} 2. Nf3 {[%clk 0:03:01]}  Nc6 {[%clk 0:02:57]} 3. d4 {[%clk 0:03:02]}  cxd4 {[%clk 0:02:58]} 4. Nxd4 {[%clk 0:03:02]}  e5 {[%clk 0:02:55]} 5. Nb5 {[%clk 0:03:02]}  d6 {[%clk 0:02:55]} 6. N1c3 {[%clk 0:03:01]}  a6 {[%clk 0:02:55]} 7. Na3 {[%clk 0:03:02]}  Be7 {[%clk 0:02:55]} 8. g3 {[%clk 0:03:02]}  Nf6 {[%clk 0:02:53]} 9. Bg2 {[%clk 0:03:03]}  Bg4 {[%clk 0:02:53]} 10. Qd3 {[%clk 0:02:49]}  O-O {[%clk 0:02:39]} 11. O-O {[%clk 0:02:49]}  Nd4 {[%clk 0:02:33]} 12. Be3 {[%clk 0:02:45]}  Nf3+ {[%clk 0:02:12]} 13. Kh1 {[%clk 0:02:39]}  d5 {[%clk 0:02:07]} 14. exd5 {[%clk 0:02:21]}  Bxa3 {[%clk 0:02:01]} 15. bxa3 {[%clk 0:02:20]}  Nd4 {[%clk 0:01:41]} 16. Bxd4 {[%clk 0:02:18]}  exd4 {[%clk 0:01:42]} 17. Qxd4 {[%clk 0:02:18]}  Rc8 {[%clk 0:01:43]} 18. d6 {[%clk 0:02:09]}  Qa5 {[%clk 0:01:38]} 19. Nd5 {[%clk 0:02:04]}  Nxd5 {[%clk 0:01:32]} 20. Qxg4 {[%clk 0:02:04]}  Nf6 {[%clk 0:01:31]} 21. Qb4 {[%clk 0:01:58]}  Qxb4 {[%clk 0:01:15]} 22. axb4 {[%clk 0:01:58]}  Rxc2 {[%clk 0:01:13]} 23. Bxb7 {[%clk 0:01:57]}  Rd2 {[%clk 0:01:09]} 24. Bxa6 {[%clk 0:01:42]}  Rxd6 {[%clk 0:01:08]} 25. Bc4 {[%clk 0:01:32]}  Rd4 {[%clk 0:01:03]} 26. Rfc1 {[%clk 0:01:32]}  Rb8 {[%clk 0:00:53]} 27. b5 {[%clk 0:01:24]}  Kf8 {[%clk 0:00:52]} 28. a4 {[%clk 0:01:24]}  Nd5 {[%clk 0:00:50]} 29. a5 {[%clk 0:01:17]}  Rc8 {[%clk 0:00:48]} 30. Bxd5 {[%clk 0:01:13]}  Rxc1+ {[%clk 0:00:48]} 31. Rxc1 {[%clk 0:01:14]}  Rxd5 {[%clk 0:00:49]} 32. Rb1 {[%clk 0:01:12]} 1-0


[Site "https://www.chess.com"]

[Event "Titled Tuesday Blitz March 14 Late 2023"]
[White "Bilych, Olexiy"]
[Black "Quinones Garcia, Santiago"]
[WhiteFideId "14156504"]
[BlackFideId "4408497"]
[WhiteElo "2320"]
[BlackElo "2263"]
[Result "0-1"]
[Round "07"]
[TimeControl "180+2"]
[Date "2023.03.14"]
[WhiteClock "0:01:01"]
[BlackClock "0:01:13"]

1. d4 {[%clk 0:03:00]}  Nf6 {[%clk 0:02:58]} 2. c4 {[%clk 0:03:01]}  g6 {[%clk 0:02:57]} 3. Nc3 {[%clk 0:03:01]}  d5 {[%clk 0:02:58]} 4. Bf4 {[%clk 0:02:58]}  Bg7 {[%clk 0:02:55]} 5. e3 {[%clk 0:02:59]}  O-O {[%clk 0:02:54]} 6. Rc1 {[%clk 0:02:59]}  c5 {[%clk 0:02:54]} 7. dxc5 {[%clk 0:02:58]}  Qa5 {[%clk 0:02:52]} 8. Nf3 {[%clk 0:02:59]}  Ne4 {[%clk 0:02:52]} 9. Be5 {[%clk 0:02:48]}  Bxe5 {[%clk 0:02:29]} 10. Nxe5 {[%clk 0:02:49]}  Nxc3 {[%clk 0:02:26]} 11. Rxc3 {[%clk 0:02:46]}  Qxa2 {[%clk 0:02:20]} 12. cxd5 {[%clk 0:02:44]}  Qxb2 {[%clk 0:02:19]} 13. Qc1 {[%clk 0:02:43]}  Qxc1+ {[%clk 0:02:08]} 14. Rxc1 {[%clk 0:02:44]}  Bf5 {[%clk 0:02:08]} 15. f3 {[%clk 0:02:32]}  f6 {[%clk 0:02:07]} 16. Nc4 {[%clk 0:02:27]}  Rc8 {[%clk 0:02:07]} 17. e4 {[%clk 0:02:21]}  Rxc5 {[%clk 0:01:56]} 18. exf5 {[%clk 0:02:20]}  b5 {[%clk 0:01:56]} 19. Kd2 {[%clk 0:02:09]}  bxc4 {[%clk 0:01:55]} 20. Bxc4 {[%clk 0:02:10]}  Nd7 {[%clk 0:01:51]} 21. d6+ {[%clk 0:01:57]}  Kf8 {[%clk 0:01:51]} 22. dxe7+ {[%clk 0:01:56]}  Kxe7 {[%clk 0:01:50]} 23. Rhe1+ {[%clk 0:01:56]}  Kf8 {[%clk 0:01:47]} 24. Be6 {[%clk 0:01:49]}  Rd8 {[%clk 0:01:40]} 25. Ke3 {[%clk 0:01:29]}  Re5+ {[%clk 0:01:34]} 26. Kf2 {[%clk 0:01:28]}  Rxe1 {[%clk 0:01:34]} 27. Rxe1 {[%clk 0:01:28]}  Nc5 {[%clk 0:01:34]} 28. fxg6 {[%clk 0:01:21]}  Nd3+ {[%clk 0:01:28]} 29. Ke2 {[%clk 0:00:54]}  Nxe1 {[%clk 0:01:28]} 30. gxh7 {[%clk 0:00:54]}  Kg7 {[%clk 0:01:26]} 31. Bf5 {[%clk 0:00:51]}  Nxg2 {[%clk 0:01:23]} 32. Kf2 {[%clk 0:00:51]}  Nh4 {[%clk 0:01:23]} 33. Be4 {[%clk 0:00:50]}  Ng6 {[%clk 0:01:21]} 34. Bc6 {[%clk 0:00:51]}  Kxh7 {[%clk 0:01:21]} 35. Kg3 {[%clk 0:00:51]}  a5 {[%clk 0:01:21]} 36. Be4 {[%clk 0:00:52]}  Kg7 {[%clk 0:01:21]} 37. h4 {[%clk 0:00:52]}  a4 {[%clk 0:01:21]} 38. h5 {[%clk 0:00:53]}  Ne5 {[%clk 0:01:21]} 39. Bb1 {[%clk 0:00:51]}  a3 {[%clk 0:01:21]} 40. Ba2 {[%clk 0:00:52]}  Rd2 {[%clk 0:01:21]} 41. Be6 {[%clk 0:00:53]}  a2 {[%clk 0:01:19]} 42. Bxa2 {[%clk 0:00:54]}  Rxa2 {[%clk 0:01:19]} 43. f4 {[%clk 0:00:54]}  Ra3+ {[%clk 0:01:19]} 44. Kh4 {[%clk 0:00:55]}  Ra4 {[%clk 0:01:18]} 45. Kg3 {[%clk 0:00:54]}  Nd3 {[%clk 0:01:19]} 46. Kh4 {[%clk 0:00:55]}  Rxf4+ {[%clk 0:01:18]} 47. Kg3 {[%clk 0:00:56]}  Rf5 {[%clk 0:01:17]} 48. Kh4 {[%clk 0:00:57]}  Rg5 {[%clk 0:01:17]} 49. Kh3 {[%clk 0:00:57]}  f5 {[%clk 0:01:16]} 50. Kh4 {[%clk 0:00:58]}  Kh6 {[%clk 0:01:16]} 51. Kh3 {[%clk 0:00:59]}  f4 {[%clk 0:01:16]} 52. Kh4 {[%clk 0:00:59]}  f3 {[%clk 0:01:16]} 53. Kh3 {[%clk 0:01:00]}  f2 {[%clk 0:01:16]} 54. Kh4 {[%clk 0:01:01]}  Ne5 {[%clk 0:01:12]} 55. Kh3 {[%clk 0:01:01]}  f1=Q+ {[%clk 0:01:12]} 56. Kh4 {[%clk 0:01:01]}  Qh1# {[%clk 0:01:13]} 0-1


[Site "https://www.chess.com"]

[Event "Titled Tuesday Blitz March 14 Late 2023"]
[White "Fiorito, Francisco"]
[Black "Deviprasath, Sharvesh"]
[WhiteFideId "180165"]
[BlackFideId "30938228"]
[WhiteElo "2341"]
[BlackElo "2168"]
[Result "1-0"]
[Round "07"]
[TimeControl "180+2"]
[Date "2023.03.14"]
[WhiteClock "0:00:14"]
[BlackClock "0:00:01"]

1. e4 {[%clk 0:03:00]}  c5 {[%clk 0:02:55]} 2. d3 {[%clk 0:03:01]}  g6 {[%clk 0:02:54]} 3. g3 {[%clk 0:03:01]}  Bg7 {[%clk 0:02:55]} 4. Bg2 {[%clk 0:03:01]}  Nc6 {[%clk 0:02:55]} 5. f4 {[%clk 0:03:02]}  d6 {[%clk 0:02:54]} 6. Nf3 {[%clk 0:03:03]}  e5 {[%clk 0:02:54]} 7. O-O {[%clk 0:03:03]}  Nge7 {[%clk 0:02:54]} 8. Nc3 {[%clk 0:03:03]}  O-O {[%clk 0:02:52]} 9. f5 {[%clk 0:03:03]}  gxf5 {[%clk 0:02:51]} 10. Nh4 {[%clk 0:03:04]}  fxe4 {[%clk 0:02:43]} 11. dxe4 {[%clk 0:03:04]}  Nd4 {[%clk 0:02:37]} 12. Bg5 {[%clk 0:03:00]}  f6 {[%clk 0:02:31]} 13. Be3 {[%clk 0:02:59]}  Be6 {[%clk 0:02:30]} 14. Nd5 {[%clk 0:02:55]}  Ng6 {[%clk 0:02:07]} 15. Nf5 {[%clk 0:02:47]}  Bxd5 {[%clk 0:02:01]} 16. Nxg7 {[%clk 0:02:40]}  Kxg7 {[%clk 0:01:56]} 17. exd5 {[%clk 0:02:40]}  f5 {[%clk 0:01:56]} 18. c3 {[%clk 0:02:41]}  f4 {[%clk 0:01:55]} 19. gxf4 {[%clk 0:02:38]}  Nf5 {[%clk 0:01:48]} 20. Bd2 {[%clk 0:02:33]}  Nxf4 {[%clk 0:01:47]} 21. Bxf4 {[%clk 0:02:33]}  exf4 {[%clk 0:01:48]} 22. Qg4+ {[%clk 0:02:29]}  Kh8 {[%clk 0:01:47]} 23. Qxf4 {[%clk 0:02:26]}  Qf6 {[%clk 0:01:32]} 24. Kh1 {[%clk 0:02:23]}  Rae8 {[%clk 0:01:28]} 25. Rae1 {[%clk 0:02:18]}  Rxe1 {[%clk 0:00:53]} 26. Rxe1 {[%clk 0:02:19]}  Ng7 {[%clk 0:00:50]} 27. Qg3 {[%clk 0:02:10]}  Nh5 {[%clk 0:00:43]} 28. Qg4 {[%clk 0:02:03]}  Nf4 {[%clk 0:00:41]} 29. Rf1 {[%clk 0:02:02]}  Qe5 {[%clk 0:00:37]} 30. Qg3 {[%clk 0:01:56]}  h5 {[%clk 0:00:34]} 31. h4 {[%clk 0:01:45]}  Kh7 {[%clk 0:00:27]} 32. Re1 {[%clk 0:01:39]}  Qf6 {[%clk 0:00:23]} 33. Be4+ {[%clk 0:01:18]}  Kh8 {[%clk 0:00:14]} 34. Bf3 {[%clk 0:01:11]}  Rg8 {[%clk 0:00:12]} 35. Qh2 {[%clk 0:01:11]}  Qf5 {[%clk 0:00:10]} 36. Rf1 {[%clk 0:01:05]}  Qe5 {[%clk 0:00:07]} 37. Rd1 {[%clk 0:00:18]}  a5 {[%clk 0:00:07]} 38. a4 {[%clk 0:00:17]}  Qf5 {[%clk 0:00:05]} 39. Rg1 {[%clk 0:00:15]}  Rxg1+ {[%clk 0:00:04]} 40. Kxg1 {[%clk 0:00:13]}  Qb1+ {[%clk 0:00:04]} 41. Kf2 {[%clk 0:00:13]}  Qxb2+ {[%clk 0:00:04]} 42. Kg3 {[%clk 0:00:13]}  Qxh2+ {[%clk 0:00:05]} 43. Kxh2 {[%clk 0:00:13]}  Kg7 {[%clk 0:00:05]} 44. Kg3 {[%clk 0:00:14]}  Nd3 {[%clk 0:00:06]} 45. Bxh5 {[%clk 0:00:13]}  Nb2 {[%clk 0:00:06]} 46. Be8 {[%clk 0:00:12]}  Nd1 {[%clk 0:00:05]} 47. c4 {[%clk 0:00:12]}  Nb2 {[%clk 0:00:05]} 48. Bb5 {[%clk 0:00:12]}  Kf6 {[%clk 0:00:04]} 49. Kf4 {[%clk 0:00:12]}  Nd3+ {[%clk 0:00:05]} 50. Ke4 {[%clk 0:00:12]}  Ne5 {[%clk 0:00:05]} 51. Kf4 {[%clk 0:00:13]}  Kg6 {[%clk 0:00:05]} 52. Be8+ {[%clk 0:00:13]}  Kh6 {[%clk 0:00:05]} 53. Bb5 {[%clk 0:00:12]}  Kh5 {[%clk 0:00:06]} 54. Kg3 {[%clk 0:00:13]}  Kg6 {[%clk 0:00:06]} 55. Be8+ {[%clk 0:00:13]}  Kh6 {[%clk 0:00:06]} 56. Bb5 {[%clk 0:00:13]}  b6 {[%clk 0:00:06]} 57. Kf4 {[%clk 0:00:13]}  Nd3+ {[%clk 0:00:06]} 58. Kf5 {[%clk 0:00:14]}  Ne5 {[%clk 0:00:02]} 59. Ke6 {[%clk 0:00:14]}  Nd3 {[%clk 0:00:01]} 60. Kxd6 {[%clk 0:00:14]} 1-0


[Site "https://www.chess.com"]

[Event "Titled Tuesday Blitz March 14 Late 2023"]
[White "Vlassov, Nikolai"]
[Black "Trakru, Rohun"]
[WhiteFideId "4103360"]
[BlackFideId "2097613"]
[WhiteElo "2324"]
[BlackElo "1852"]
[Result "1-0"]
[Round "07"]
[TimeControl "180+2"]
[Date "2023.03.14"]
[WhiteClock "0:00:15"]
[BlackClock "0:00:03"]

1. e4 {[%clk 0:03:00]}  c6 {[%clk 0:02:58]} 2. d4 {[%clk 0:03:00]}  d5 {[%clk 0:02:59]} 3. e5 {[%clk 0:03:00]}  c5 {[%clk 0:02:58]} 4. dxc5 {[%clk 0:03:00]}  e6 {[%clk 0:02:57]} 5. Qg4 {[%clk 0:02:56]}  Nc6 {[%clk 0:02:47]} 6. Nf3 {[%clk 0:02:55]}  g6 {[%clk 0:02:46]} 7. Be3 {[%clk 0:02:48]}  h5 {[%clk 0:02:42]} 8. Qg3 {[%clk 0:02:37]}  Nh6 {[%clk 0:02:30]} 9. Bd3 {[%clk 0:02:30]}  Nf5 {[%clk 0:02:30]} 10. Bxf5 {[%clk 0:02:30]}  gxf5 {[%clk 0:02:31]} 11. O-O {[%clk 0:02:25]}  Ne7 {[%clk 0:02:19]} 12. Bg5 {[%clk 0:02:16]}  Qc7 {[%clk 0:02:09]} 13. b4 {[%clk 0:02:08]}  Ng6 {[%clk 0:02:09]} 14. Nc3 {[%clk 0:02:00]}  Bg7 {[%clk 0:02:06]} 15. Nb5 {[%clk 0:01:56]}  Qd7 {[%clk 0:02:03]} 16. Nd6+ {[%clk 0:01:55]}  Kf8 {[%clk 0:02:03]} 17. Bf6 {[%clk 0:01:47]}  f4 {[%clk 0:01:07]} 18. Qh3 {[%clk 0:01:36]}  Bxf6 {[%clk 0:01:00]} 19. exf6 {[%clk 0:01:35]}  e5 {[%clk 0:00:45]} 20. Qxd7 {[%clk 0:01:30]}  Bxd7 {[%clk 0:00:46]} 21. Ng5 {[%clk 0:01:29]}  Be8 {[%clk 0:00:41]} 22. Rfd1 {[%clk 0:01:11]}  d4 {[%clk 0:00:40]} 23. b5 {[%clk 0:01:02]}  h4 {[%clk 0:00:32]} 24. a4 {[%clk 0:01:01]}  Rh5 {[%clk 0:00:32]} 25. Nge4 {[%clk 0:01:00]}  h3 {[%clk 0:00:22]} 26. g3 {[%clk 0:00:55]}  Rb8 {[%clk 0:00:20]} 27. Ra3 {[%clk 0:00:46]}  Bd7 {[%clk 0:00:18]} 28. c3 {[%clk 0:00:44]}  Bg4 {[%clk 0:00:16]} 29. Rc1 {[%clk 0:00:38]}  d3 {[%clk 0:00:16]} 30. c4 {[%clk 0:00:33]}  Be2 {[%clk 0:00:15]} 31. c6 {[%clk 0:00:28]}  bxc6 {[%clk 0:00:10]} 32. bxc6 {[%clk 0:00:28]}  Nh4 {[%clk 0:00:06]} 33. c7 {[%clk 0:00:19]}  Ra8 {[%clk 0:00:02]} 34. c8=Q+ {[%clk 0:00:18]}  Rxc8 {[%clk 0:00:03]} 35. Nxc8 {[%clk 0:00:18]}  Bf3 {[%clk 0:00:02]} 36. Ncd6 {[%clk 0:00:17]}  Bg2 {[%clk 0:00:02]} 37. Rxd3 {[%clk 0:00:15]}  Nf3+ {[%clk 0:00:03]} 38. Rxf3 {[%clk 0:00:15]}  Bxf3 {[%clk 0:00:03]} 39. c5 {[%clk 0:00:15]}  fxg3 {[%clk 0:00:03]} 40. fxg3 {[%clk 0:00:15]} 1-0


[Site "https://www.chess.com"]

[Event "Titled Tuesday Blitz March 14 Late 2023"]
[White "Domingo Nunez, Ruben"]
[Black "Dzierzak, Radoslaw"]
[WhiteFideId "22245570"]
[BlackFideId "1161407"]
[WhiteElo "2404"]
[BlackElo "2166"]
[Result "1-0"]
[Round "07"]
[TimeControl "180+2"]
[Date "2023.03.14"]
[WhiteClock "0:00:03"]
[BlackClock "0:00:02"]

1. b3 {[%clk 0:02:56]}  e5 {[%clk 0:02:59]} 2. Bb2 {[%clk 0:02:57]}  Nc6 {[%clk 0:02:59]} 3. e3 {[%clk 0:02:56]}  a6 {[%clk 0:03:00]} 4. Nf3 {[%clk 0:02:56]}  e4 {[%clk 0:03:00]} 5. Ne5 {[%clk 0:02:56]}  Nxe5 {[%clk 0:03:00]} 6. Bxe5 {[%clk 0:02:57]}  d6 {[%clk 0:02:58]} 7. Bb2 {[%clk 0:02:57]}  Qg5 {[%clk 0:02:54]} 8. d3 {[%clk 0:02:56]}  Bf5 {[%clk 0:02:50]} 9. h4 {[%clk 0:02:43]}  Qg6 {[%clk 0:02:41]} 10. Nc3 {[%clk 0:02:26]}  Nf6 {[%clk 0:02:40]} 11. dxe4 {[%clk 0:02:12]}  Nxe4 {[%clk 0:02:37]} 12. Nd5 {[%clk 0:02:13]}  O-O-O {[%clk 0:02:32]} 13. Nf4 {[%clk 0:02:00]}  Qh6 {[%clk 0:02:24]} 14. g4 {[%clk 0:02:00]}  g5 {[%clk 0:02:17]} 15. Qd5 {[%clk 0:01:14]}  Bxg4 {[%clk 0:01:59]} 16. Qxe4 {[%clk 0:01:06]}  Bg7 {[%clk 0:01:54]} 17. Nd3 {[%clk 0:00:47]}  f5 {[%clk 0:01:36]} 18. Qd5 {[%clk 0:00:45]}  Bxb2 {[%clk 0:01:29]} 19. Nxb2 {[%clk 0:00:45]}  Qf6 {[%clk 0:01:26]} 20. Qd4 {[%clk 0:00:45]}  Qxd4 {[%clk 0:01:15]} 21. exd4 {[%clk 0:00:46]}  Bf3 {[%clk 0:01:15]} 22. Rg1 {[%clk 0:00:42]}  Rde8+ {[%clk 0:01:10]} 23. Kd2 {[%clk 0:00:42]}  gxh4 {[%clk 0:01:02]} 24. Re1 {[%clk 0:00:31]}  Rxe1 {[%clk 0:01:01]} 25. Kxe1 {[%clk 0:00:32]}  Re8+ {[%clk 0:01:01]} 26. Kd2 {[%clk 0:00:32]}  h3 {[%clk 0:00:52]} 27. Bxh3 {[%clk 0:00:29]}  Re2+ {[%clk 0:00:52]} 28. Kc3 {[%clk 0:00:25]}  Be4 {[%clk 0:00:43]} 29. Rg8+ {[%clk 0:00:25]}  Kd7 {[%clk 0:00:43]} 30. Rg7+ {[%clk 0:00:26]}  Kc6 {[%clk 0:00:42]} 31. Nd3 {[%clk 0:00:24]}  a5 {[%clk 0:00:33]} 32. Bg2 {[%clk 0:00:20]}  b5 {[%clk 0:00:29]} 33. d5+ {[%clk 0:00:18]}  Kb6 {[%clk 0:00:22]} 34. Re7 {[%clk 0:00:10]}  b4+ {[%clk 0:00:15]} 35. Kd4 {[%clk 0:00:10]}  Bxd3 {[%clk 0:00:15]} 36. Rxh7 {[%clk 0:00:08]}  Bxc2 {[%clk 0:00:12]} 37. Rh8 {[%clk 0:00:08]}  Be4 {[%clk 0:00:07]} 38. Bh3 {[%clk 0:00:07]}  Rd2+ {[%clk 0:00:05]} 39. Ke3 {[%clk 0:00:08]}  Rd3+ {[%clk 0:00:04]} 40. Kf4 {[%clk 0:00:08]}  Rf3+ {[%clk 0:00:04]} 41. Kg5 {[%clk 0:00:08]}  Rxf2 {[%clk 0:00:05]} 42. Kf6 {[%clk 0:00:08]}  Rxa2 {[%clk 0:00:05]} 43. Ke7 {[%clk 0:00:09]}  Rd2 {[%clk 0:00:04]} 44. Kd7 {[%clk 0:00:03]}  Rxd5 {[%clk 0:00:03]} 45. Rb8+ {[%clk 0:00:04]}  Kc5 {[%clk 0:00:03]} 46. Bf1 {[%clk 0:00:03]}  Kd4 {[%clk 0:00:03]} 47. Kxc7 {[%clk 0:00:03]}  Rc5+ {[%clk 0:00:03]} 48. Kxd6 {[%clk 0:00:03]}  Rc3 {[%clk 0:00:03]} 49. Bc4 {[%clk 0:00:03]}  Ke3 {[%clk 0:00:03]} 50. Rf8 {[%clk 0:00:02]}  f4 {[%clk 0:00:04]} 51. Re8 {[%clk 0:00:01]}  f3 {[%clk 0:00:04]} 52. Bd5 {[%clk 0:00:02]}  Rd3 {[%clk 0:00:04]} 53. Rxe4+ {[%clk 0:00:02]}  Kd2 {[%clk 0:00:04]} 54. Rf4 {[%clk 0:00:02]}  Ke2 {[%clk 0:00:03]} 55. Kc5 {[%clk 0:00:02]}  f2 {[%clk 0:00:03]} 56. Bc4 {[%clk 0:00:03]}  Ke3 {[%clk 0:00:03]} 57. Rxf2 {[%clk 0:00:02]}  Kxf2 {[%clk 0:00:01]} 58. Bxd3 {[%clk 0:00:03]}  Ke3 {[%clk 0:00:02]} 59. Bc4 {[%clk 0:00:03]} 1-0


[Site "https://www.chess.com"]

[Event "Titled Tuesday Blitz March 14 Late 2023"]
[White "Escalona Landi, Samid Eduardo"]
[Black "Petukhov, Dmitry"]
[WhiteFideId "3937437"]
[BlackFideId "4142748"]
[WhiteElo "2207"]
[BlackElo "2311"]
[Result "1-0"]
[Round "07"]
[TimeControl "180+2"]
[Date "2023.03.14"]
[WhiteClock "0:00:24"]
[BlackClock "0:01:35"]

1. e4 {[%clk 0:02:55]}  c5 {[%clk 0:02:59]} 2. Nf3 {[%clk 0:02:55]}  d6 {[%clk 0:03:00]} 3. d4 {[%clk 0:02:53]}  cxd4 {[%clk 0:03:00]} 4. Nxd4 {[%clk 0:02:53]}  Nf6 {[%clk 0:03:01]} 5. Nc3 {[%clk 0:02:53]}  Nc6 {[%clk 0:03:01]} 6. Bg5 {[%clk 0:02:51]}  Bd7 {[%clk 0:03:01]} 7. Qd2 {[%clk 0:02:49]}  Rc8 {[%clk 0:03:01]} 8. f4 {[%clk 0:02:40]}  Nxd4 {[%clk 0:03:01]} 9. Qxd4 {[%clk 0:02:39]}  Qa5 {[%clk 0:03:02]} 10. e5 {[%clk 0:02:32]}  dxe5 {[%clk 0:02:58]} 11. fxe5 {[%clk 0:02:31]}  e6 {[%clk 0:02:59]} 12. O-O-O {[%clk 0:02:26]}  Bc6 {[%clk 0:02:57]} 13. Nb5 {[%clk 0:01:49]}  Bxb5 {[%clk 0:02:56]} 14. exf6 {[%clk 0:01:44]}  Bc6 {[%clk 0:02:54]} 15. h4 {[%clk 0:01:40]}  Bc5 {[%clk 0:02:50]} 16. Qc4 {[%clk 0:00:59]}  g6 {[%clk 0:02:19]} 17. h5 {[%clk 0:00:45]}  gxh5 {[%clk 0:01:59]} 18. Bd2 {[%clk 0:00:44]}  Qb6 {[%clk 0:01:54]} 19. Rxh5 {[%clk 0:00:29]}  a6 {[%clk 0:01:50]} 20. Qxc5 {[%clk 0:00:26]}  Qxc5 {[%clk 0:01:48]} 21. Rxc5 {[%clk 0:00:27]}  Rd8 {[%clk 0:01:47]} 22. Bh6 {[%clk 0:00:23]}  Rxd1+ {[%clk 0:01:45]} 23. Kxd1 {[%clk 0:00:24]}  Rg8 {[%clk 0:01:46]} 24. Bg7 {[%clk 0:00:24]}  Kd7 {[%clk 0:01:45]} 25. Rh5 {[%clk 0:00:24]}  Be4 {[%clk 0:01:45]} 26. Bd3 {[%clk 0:00:21]}  Bg6 {[%clk 0:01:32]} 27. Bxg6 {[%clk 0:00:19]}  hxg6 {[%clk 0:01:33]} 28. Rh8 {[%clk 0:00:19]}  Rxh8 {[%clk 0:01:33]} 29. Bxh8 {[%clk 0:00:20]}  e5 {[%clk 0:01:34]} 30. Ke2 {[%clk 0:00:18]}  Ke6 {[%clk 0:01:35]} 31. Ke3 {[%clk 0:00:19]}  Kf5 {[%clk 0:01:35]} 32. c4 {[%clk 0:00:18]}  b6 {[%clk 0:01:30]} 33. b4 {[%clk 0:00:18]}  Ke6 {[%clk 0:01:24]} 34. Ke4 {[%clk 0:00:18]}  Kd6 {[%clk 0:01:24]} 35. g4 {[%clk 0:00:18]}  Ke6 {[%clk 0:01:24]} 36. Bg7 {[%clk 0:00:18]}  Kd6 {[%clk 0:01:23]} 37. Bf8+ {[%clk 0:00:19]}  Ke6 {[%clk 0:01:23]} 38. g5 {[%clk 0:00:20]}  a5 {[%clk 0:01:21]} 39. bxa5 {[%clk 0:00:18]}  bxa5 {[%clk 0:01:22]} 40. a4 {[%clk 0:00:18]}  Kd7 {[%clk 0:01:21]} 41. Kxe5 {[%clk 0:00:18]}  Kc6 {[%clk 0:01:22]} 42. Kd4 {[%clk 0:00:18]}  Kd7 {[%clk 0:01:22]} 43. Bc5 {[%clk 0:00:18]}  Kc6 {[%clk 0:01:23]} 44. Ba3 {[%clk 0:00:19]}  Kd7 {[%clk 0:01:23]} 45. Bc1 {[%clk 0:00:19]}  Kc6 {[%clk 0:01:24]} 46. Bd2 {[%clk 0:00:20]}  Kb6 {[%clk 0:01:25]} 47. Kd5 {[%clk 0:00:20]}  Ka6 {[%clk 0:01:25]} 48. Be3 {[%clk 0:00:19]}  Kb7 {[%clk 0:01:25]} 49. Kd6 {[%clk 0:00:20]}  Ka6 {[%clk 0:01:26]} 50. Ke7 {[%clk 0:00:20]}  Kb7 {[%clk 0:01:25]} 51. Kxf7 {[%clk 0:00:21]}  Ka6 {[%clk 0:01:26]} 52. Bd4 {[%clk 0:00:21]}  Kb7 {[%clk 0:01:27]} 53. Kxg6 {[%clk 0:00:22]}  Ka6 {[%clk 0:01:27]} 54. Kf5 {[%clk 0:00:22]}  Kb7 {[%clk 0:01:28]} 55. Ke6 {[%clk 0:00:23]}  Ka6 {[%clk 0:01:29]} 56. g6 {[%clk 0:00:24]}  Kb7 {[%clk 0:01:30]} 57. g7 {[%clk 0:00:24]}  Ka6 {[%clk 0:01:31]} 58. g8=Q {[%clk 0:00:25]}  Kb7 {[%clk 0:01:32]} 59. f7 {[%clk 0:00:26]}  Ka6 {[%clk 0:01:33]} 60. f8=Q {[%clk 0:00:25]}  Kb7 {[%clk 0:01:34]} 61. c5 {[%clk 0:00:25]}  Kc6 {[%clk 0:01:35]} 62. Qc8# {[%clk 0:00:24]} 1-0


[Site "https://www.chess.com"]

[Event "Titled Tuesday Blitz March 14 Late 2023"]
[White "Yuan, Qingyu"]
[Black "Karas, Marek"]
[WhiteFideId "8609772"]
[BlackFideId "14928558"]
[WhiteElo "2359"]
[BlackElo "2233"]
[Result "1/2-1/2"]
[Round "07"]
[TimeControl "180+2"]
[Date "2023.03.14"]
[WhiteClock "0:00:20"]
[BlackClock "0:01:27"]

1. e4 {[%clk 0:03:00]}  e6 {[%clk 0:03:00]} 2. d4 {[%clk 0:03:01]}  d5 {[%clk 0:03:00]} 3. Nd2 {[%clk 0:03:01]}  a6 {[%clk 0:03:00]} 4. Bd3 {[%clk 0:02:58]}  c5 {[%clk 0:03:00]} 5. dxc5 {[%clk 0:02:57]}  Bxc5 {[%clk 0:03:01]} 6. Ngf3 {[%clk 0:02:57]}  Ne7 {[%clk 0:03:01]} 7. O-O {[%clk 0:02:57]}  Nbc6 {[%clk 0:03:01]} 8. c3 {[%clk 0:02:57]}  Ng6 {[%clk 0:03:01]} 9. Nb3 {[%clk 0:02:34]}  Bb6 {[%clk 0:02:55]} 10. exd5 {[%clk 0:02:31]}  Qxd5 {[%clk 0:02:56]} 11. Bxg6 {[%clk 0:02:31]}  hxg6 {[%clk 0:02:55]} 12. Qxd5 {[%clk 0:02:31]}  exd5 {[%clk 0:02:56]} 13. Re1+ {[%clk 0:02:30]}  Be6 {[%clk 0:02:53]} 14. Be3 {[%clk 0:02:27]}  Bc7 {[%clk 0:02:45]} 15. Nc5 {[%clk 0:02:15]}  O-O-O {[%clk 0:02:45]} 16. Bd4 {[%clk 0:02:14]}  Bg4 {[%clk 0:02:41]} 17. Bxg7 {[%clk 0:02:10]}  Rh5 {[%clk 0:02:32]} 18. Bf6 {[%clk 0:02:09]}  Rg8 {[%clk 0:02:25]} 19. h4 {[%clk 0:01:27]}  Bxf3 {[%clk 0:02:18]} 20. gxf3 {[%clk 0:01:27]}  Rf5 {[%clk 0:02:18]} 21. Bg5 {[%clk 0:01:23]}  Ne5 {[%clk 0:02:13]} 22. Kg2 {[%clk 0:00:50]}  f6 {[%clk 0:02:08]} 23. Be3 {[%clk 0:00:45]}  Nxf3 {[%clk 0:02:04]} 24. Rh1 {[%clk 0:00:45]}  Rh8 {[%clk 0:02:03]} 25. Ne6 {[%clk 0:00:35]}  Rxh4 {[%clk 0:01:56]} 26. Ng7 {[%clk 0:00:33]}  Rg4+ {[%clk 0:01:50]} 27. Kh3 {[%clk 0:00:25]}  Rh4+ {[%clk 0:01:42]} 28. Kg2 {[%clk 0:00:25]}  Rg4+ {[%clk 0:01:41]} 29. Kh3 {[%clk 0:00:20]}  Rh4+ {[%clk 0:01:27]} 30. Kg2 {[%clk 0:00:20]} 1/2-1/2


[Site "https://www.chess.com"]